Cogmind - Beta 17.1 @@@ ROGUE MODE // 2026.09.16 @ 17:01:22 Player: MAXX-P31 Result: Destroyed by 8R-AWN with 8R-AWN's Boregun Performance ------------- Evolutions (0) 0 Regions Visited (3) 600 Robots Destroyed (16) 80 Value Destroyed (369) 369 Prototype IDs (0) 0 Alien Tech Used (0) 0 Bonus (-288) -288 TOTAL SCORE: 761 Bonus ------- Friendly Fire -288 Cogmind --------- Core Integrity 0/250 Matter 240/300 Energy 100/100 System Corruption 0% Temperature Cool (0) Movement Core (200) Ox3 Location -10/Exiles Parts ------- > --- POWER (1) -------- (None) > --- PROPULSION (2) --- (None) > --- UTILITY (2) ------ Hardened Light Armor Plating Hardened Light Armor Plating > --- WEAPON (2) ------- Hammer > --- INVENTORY (5) ---- Aluminum Leg Scrap Suit Grenade Launcher Peak State ------------ > --- POWER ------------ Light Ion Engine > --- PROPULSION ------- Light Treads Light Treads > --- UTILITY ---------- Large Storage Unit Hardened Light Armor Plating > --- WEAPON ----------- Assault Rifle Light Cannon > --- INVENTORY -------- Light Treads Light Treads Aluminum Leg Aluminum Leg Scrap Suit Huge Storage Unit High-capacity Matter Pod Hardened Light Armor Plating Hardened Light Armor Plating Hardened Light Armor Plating Beam Cannon Assault Rifle Grenade Launcher Hammer [Rating: 10] Favorites ----------- Power Light Ion Engine Engine Light Ion Engine Propulsion Light Treads Treads Light Treads Utility Large Storage Unit Device Seismic Detector Storage Large Storage Unit Protection Hardened Light Armor Plating Weapon Light Cannon Energy Gun Medium Laser Ballistic Gun Assault Rifle Ballistic Cannon Light Cannon Launcher Grenade Launcher Impact Weapon Hammer Build | -11 -10 -10 -10 ------- Run | Yrd Mat Min Exi Slots Evolved . | . . . . Power . | . . . . Propulsion . | . . . . Utility . | . . . . Weapon . | . . . . Parts Attached 16 | 7 5 1 3 Power 1 | 1 . . . Engine 1 | 1 . . . Core . | . . . . Reactor . | . . . . Propulsion 2 | 2 . . . Treads 2 | 2 . . . Leg . | . . . . Wheel . | . . . . Hover . | . . . . Flight . | . . . . Utility 6 | 2 3 . 1 Device 1 | 1 . . . Storage 2 | 1 1 . . Processor . | . . . . Hackware . | . . . . Protection 3 | . 2 . 1 Artifact . | . . . . Weapon 7 | 2 2 1 2 Energy Gun 2 | 2 . . . Energy Cannon . | . . . . Ballistic Gun 1 | . . 1 . Ballistic Cannon 2 | . 2 . . Launcher 1 | . . . 1 Special Weapon . | . . . . Impact Weapon 1 | . . . 1 Slashing Weapon . | . . . . Piercing Weapon . | . . . . Special Melee Weapon . | . . . . Unidentified Prototypes . | . . . . Parts Lost 4 | . . . 4 Power 1 | . . . 1 Propulsion 2 | . . . 2 Utility . | . . . . Weapon 1 | . . . 1 Highest Loss Streak 3 | . . . 3 To Critical Strikes 4 | . . . 4 Average Backups 11 | 1 11 14 10 Power . | . . . . Propulsion 3 | 1 3 3 3 Utility 4 | . 3 6 4 Weapon 4 | . 4 4 3 Tool/Special . | . . . . Unused Backups 20 | . 6 3 11 Power . | . . . . Propulsion 6 | . . 2 4 Utility 9 | . 3 1 5 Weapon 5 | . 3 . 2 Tool/Special . | . . . . Average Slot Usage (%) 99 | . 100 100 91 Engine 13 | . 14 14 9 Treads 27 | . 28 28 25 Device 5 | . 10 . . Storage 13 | . 14 14 9 Protection 8 | . 3 14 18 Energy Gun 7 | . 13 . . Ballistic Gun 1 | . . 1 8 Ballistic Cannon 18 | . 14 26 13 Peak Build Rating 10 | 7 9 10 10 Average Rating 8 | 5 7 9 9 On Entrance 6 | . 7 9 10 Avg Prop Armor Cover (%) . | . . . . Naked Turns . | . . . . Heaviest Build 34 | 12 34 34 34 Greatest Support 40 | 40 40 40 40 Greatest Overweight (x) . | . . . . Average Overweight (x) . | . . . . Largest Inventory Capacity 15 | 8 15 15 15 Average Capacity 13 | 7 13 15 11 Most Carried 15 | 3 15 15 15 Average Carried 11 | 1 11 14 11 Final Capacity 15 | 8 15 15 5 Final Carried 15 | 3 15 15 4 Class Distribution -------------------- 100% | Mutant Dominant Class ---------------- Mutant | -10/Materials Mutant | -10/Mines Mutant | -10/Exiles Resources | -11 -10 -10 -10 ----------- Run | Yrd Mat Min Exi Matter Collected 670 | 270 344 56 . Remotely . | . . . . Salvage Created 623 | 127 425 62 9 Parts 39 | 15 19 5 . Haulers Intercepted 2 | . 2 . . Recyclers Shooed . | . . . . Parts Field Recycled . | . . . . Retrieved Matter . | . . . . Parts Self-Destructed . | . . . . Prevented . | . . . . Parts Restored . | . . . . Kills | -11 -10 -10 -10 ------- Run | Yrd Mat Min Exi Combat Hostiles Destroyed 15 | . 7 2 6 Guns 2 | . 2 . . Cannons 7 | . 5 2 . AOE 6 | . . . 6 Classes Destroyed 5 | 2 2 . 1 Tunneler 3 | 3 . . . Hauler 2 | . 2 . . Recycler 2 | 1 1 . . Grunt 9 | . 7 2 . Assembled 7 | . . . 7 Best Kill Streak 6 | 3 3 2 6 Combat Bots Only 6 | . 3 2 6 Max Kills in Single Turn 2 | 1 1 1 2 Gunslinging . | . . . . Exploded 2 | . . . 2 Melee . | . . . . Uniques/NPCs Destroyed . | . . . . Combat | -11 -10 -10 -10 -------- Run | Yrd Mat Min Exi Hostile Shots Fired 90 | . 24 10 56 Missed 24 | . 9 5 10 Hits 66 | . 15 5 46 Projectile 66 | . 15 5 46 Critical Strikes 25 | . . . 25 Damage Taken 1097 | . 201 83 813 Core 264 | . 26 14 224 Absorbed by Shields . | . . . . Core Remaining (%) 100 | 100 . . . Volleys Fired 47 | 6 30 7 4 Largest 2 | 2 2 2 1 Hottest 90 | 90 90 60 30 Shots Fired 90 | 12 60 14 4 Gun 48 | 12 36 . . Cannon 38 | . 24 14 . Launcher 4 | . . . 4 Special . | . . . . Kinetic 38 | . 24 14 . Thermal 48 | 12 36 . . Explosive 4 | . . . 4 Electromagnetic . | . . . . Robot Hit Streak 10 | 4 10 7 2 Robot Miss Streak 4 | 1 4 4 1 Penetration Max . | . . . . Secondary Targets . | . . . . Shots Hit Robots 65 | 9 35 8 13 Core Hits 39 | 5 15 3 16 Critical Kills . | . . . . Critical Parts Destroyed 2 | . . . 2 Critical Strikes 6 | . 3 . 3 Burn 1 | . 1 . . Blast 2 | . 2 . . Smash 3 | . . . 3 Melee Attacks 18 | . . . 18 Impact 18 | . . . 18 Slashing . | . . . . Piercing . | . . . . Sneak Attacks . | . . . . Combat Hostiles . | . . . . Follow-up Attacks . | . . . . Damage Inflicted 1527 | 106 534 145 742 Guns 365 | 106 259 . . Cannons 413 | . 273 140 . Explosions 448 | . . . 448 Melee 294 | . . . 294 Ramming 7 | . 2 5 . Kinetic 413 | . 273 140 . Thermal 365 | 106 259 . . Explosive 448 | . . . 448 Electromagnetic . | . . . . Impact 294 | . . . 294 Slashing . | . . . . Piercing . | . . . . Highest Corruption . | . . . . Average Corruption . | . . . . Corruption Purged . | . . . . Corruption Blocked . | . . . . Overload Shots . | . . . . Overflow Damage 63 | . . . 63 Projectiles . | . . . . Explosions 21 | . . . 21 Melee 42 | . . . 42 Knockbacks 6 | . 3 2 1 Impact 1 | . . . 1 Kinetic 5 | . 3 2 . Secondary . | . . . . Self-Inflicted Damage 10 | . . . 10 Shots 1 | . . . 1 Rammed 2 | . 1 1 . Targets Rammed 2 | . 1 1 . Kicked . | . . . . Crushed . | . . . . Highest Temperature 357 | 90 357 141 . Average Temperature 92 | 37 111 78 . Received Heat Transfer 156 | . 111 45 . Effects 5 | . 5 . . Shutdowns 1 | . 1 . . Interference 3 | . 3 . . Damage (minor) 1 | . 1 . . Siege Activations . | . . . . Martial Activations . | . . . . Shielding Activations . | . . . . Robots Disrupted . | . . . . Combat Hostiles . | . . . . Robots Corrupted . | . . . . Combat Hostiles . | . . . . Parts Fried . | . . . . Impact Corruptions 2 | . . . 2 Robots Melted . | . . . . Combat Hostiles . | . . . . Parts Melted 3 | 1 2 . . Heat Transferred 1017 | 273 744 . . Parts Sabotaged . | . . . . Parts Stolen . | . . . . Parts Stripped . | . . . . Power Chain Reactions . | . . . . Alert | -11 -10 -10 -10 ------- Run | Yrd Mat Min Exi Maximum Alert Level . | . . . . Low Security (%) 100 | 100 100 100 . Level 1 . | . . . . Level 2 . | . . . . Level 3 . | . . . . Level 4 . | . . . . Level 5 . | . . . . High Security . | . . . . Max Security . | . . . . Peak Influence 80 | 10 80 50 . Initial . | . . . . Average 12 | 1 19 5 . Influence Increases 264 | 20 194 50 . Destroy 0b10 Robot/C 180 | . 140 40 . Destroy 0b10 Robot/NC 35 | 20 15 . . Destroy Leader 44 | . 34 10 . Successful Hack 5 | . 5 . . Influence Decreases 264 | 20 194 50 . Time Decay 264 | 20 194 50 . Squads Dispatched 2 | . 2 . . Investigation 2 | . 2 . . Extermination . | . . . . Reinforcement . | . . . . Assault . | . . . . Garrison . | . . . . Intercept . | . . . . Searches Triggered . | . . . . Construction Impeded . | . . . . Haulers Reinforced . | . . . . Active Scanning Responses . | . . . . Cargo Convoy Interrupts . | . . . . Stealth | -11 -10 -10 -10 --------- Run | Yrd Mat Min Exi Distress Signals 1 | . 1 . . Communications Jammed . | . . . . Distress Signals . | . . . . Times Spotted 19 | . 10 2 7 Peak Tracking Total 8 | . 3 2 8 Tactical Retreats . | . . . . Traps | -11 -10 -10 -10 ------- Run | Yrd Mat Min Exi Traps Triggered 2 | . 2 . . Indirectly . | . . . . Trap Hack Attempts . | . . . . Triggered . | . . . . Disarmed . | . . . . Reprogrammed . | . . . . Reused . | . . . . Traps Extracted . | . . . . Installed . | . . . . Triggered . | . . . . Machines | -11 -10 -10 -10 ---------- Run | Yrd Mat Min Exi Machines Disabled 4 | . . . 4 Max in Single Turn 2 | . . . 2 Machines Repaired . | . . . . Machines Dismantled . | . . . . Machines Sabotaged . | . . . . Overloaded Fab Kills . | . . . . Hacking | -11 -10 -10 -10 --------- Run | Yrd Mat Min Exi Machines Accessed 2 | . 2 . . Terminals 2 | . 2 . . Fabricators . | . . . . Repair Stations . | . . . . Recycling Units . | . . . . Scanalyzers . | . . . . Garrison Access . | . . . . Total Hacks 4 | . 4 . . Successful 4 | . 4 . . Failed . | . . . . Catastrophic . | . . . . Database Lockouts . | . . . . Manual 5 | . 5 . . Terminals 4 | . 4 . . Fabricators . | . . . . Repair Stations . | . . . . Recycling Units . | . . . . Scanalyzers . | . . . . Garrison Access . | . . . . Terminal Hacks 2 | . 2 . . Robot Analysis 2 | . 2 . . Fabricator Hacks . | . . . . Repair Station Hacks . | . . . . Recycling Unit Hacks . | . . . . Scanalyzer . | . . . . Garrison Access Hacks . | . . . . Unauthorized Hacks 2 | . 2 . . Terminals 2 | . 2 . . Botnet 2 | . 2 . . Fabricators . | . . . . Repair Stations . | . . . . Recycling Units . | . . . . Scanalyzers . | . . . . Garrison Access . | . . . . Data Cores Recovered . | . . . . Used . | . . . . Hacking Detections 1 | . 1 . . Full Trace Events . | . . . . Feedback Events . | . . . . Feedback Blocked . | . . . . Robot Schematics Acquired . | . . . . Robots Built . | . . . . Authchips . | . . . . Time . | . . . . Total Robot Build Rating . | . . . . Part Schematics Acquired . | . . . . Parts Built . | . . . . Authchips . | . . . . Time . | . . . . Total Part Build Rating . | . . . . Part Studies Acquired . | . . . . Parts Repaired . | . . . . Time . | . . . . Parts Recycled . | . . . . Recycled Matter . | . . . . Retrieved Matter . | . . . . Retrieved Components . | . . . . Parts Scanalyzed . | . . . . Part Schematics Acquired . | . . . . Parts Damaged . | . . . . Bothacking | -11 -10 -10 -10 ------------ Run | Yrd Mat Min Exi Used RIF Installer . | . . . . Robots Hacked . | . . . . Non-combat . | . . . . Combat . | . . . . Robot Hacks Applied . | . . . . Relay Couplers Released . | . . . . Fabnet Peak Effective % . | . . . . Robots Rewired . | . . . . Allies Hacked . | . . . . Hacks Repelled . | . . . . Allies | -11 -10 -10 -10 -------- Run | Yrd Mat Min Exi Total Allies . | . . . . Largest Group . | . . . . Highest-Rated Group . | . . . . Highest-Rated Ally . | . . . . Total Orders . | . . . . Ally Attacks . | . . . . Total Damage . | . . . . Kills . | . . . . Allies Corrupted . | . . . . Allies Melted . | . . . . Intel | -11 -10 -10 -10 ------- Run | Yrd Mat Min Exi Active Infowar (turns) 714 | 47 667 . . Seismic 714 | 47 667 . . Robot Analysis Total 2 | . 2 . . Derelict Logs Recovered . | . . . . Drone Launches . | . . . . Drone Recoveries . | . . . . Exploration | -11 -10 -10 -10 ------------- Run | Yrd Mat Min Exi Turns Passed 1692 | 140 850 543 159 Spaces Moved 892 | 70 444 318 60 Core 4 | 4 . . . Treads 888 | 66 444 318 60 Legs . | . . . . Wheels . | . . . . Hover . | . . . . Flight . | . . . . Fastest Speed 50 | 50 160 160 160 Average Speed 159 | 153 160 160 160 Slowest Speed 160 | 160 160 160 160 Overloaded Moves . | . . . . Propulsion Burnouts . | . . . . Robots Hopped . | . . . . Potential Cave-ins . | . . . . Cave-ins Triggered . | . . . . Exploration Rate (%) 40 | 5 70 65 21 Regions Visited 3 Branch Regions 2 Pre-discovered Areas . | . . . . Known Exits Taken . | . . . . Unknown Exits Taken 3 | 1 1 1 . Scrap Searched . | . . . . Spaces Dug . | . . . . Terrain Destroyed 13 | . . . 13 Melee . | . . . . Projectile . | . . . . AOE 13 | . . . 13 Terrain Rammed . | . . . . Walls Destroyed . | . . . . Machines Disabled . | . . . . Actions | -11 -10 -10 -10 --------- Run | Yrd Mat Min Exi Total 1044 | 87 529 340 88 Wait 27 | 2 19 4 2 Move 889 | 69 443 317 60 Hop . | . . . . Pick Up 27 | 3 20 4 . Fast Attach 9 | 7 1 1 . Attach 3 | . 2 . 1 Detach . | . . . . Swap 4 | . 2 . 2 Drop 18 | . 11 6 1 Fire 47 | 6 30 7 4 Melee 18 | . . . 18 Ram . | . . . . Kick . | . . . . Crush 2 | . 1 1 . Escape Stasis . | . . . . Rewire . | . . . . Trap . | . . . . Miscellaneous . | . . . . Route ------- -11/Scrapyard -10/Materials (discovered 3 exits: [*Mat x2] / [*Min]) -10/Mines (discovered 3 exits: [*Mat x2] / [*Exi]) -10/Exiles History --------- Turn | Location | Event 45 | -11/Scrapyard | Discovered new exit (range 15) 141 | -11/Scrapyard | Entered Materials 265 | -10/Materials | Discovered new exit (range 15) 346 | -10/Materials | Build established: Mutant 357 | -10/Materials | Discovered new exit (range 4) 752 | -10/Materials | Discovered new exit (range 8) 991 | -10/Materials | Entered Mines 1214 | -10/Mines | Discovered new exit (range 7) 1459 | -10/Mines | Found a Scrap Suit stashed away for nefarious purposes 1466 | -10/Mines | Found Scrap Suit 1494 | -10/Mines | Discovered new exit (range 3) 1527 | -10/Mines | Deemed a non-threat by the Exiles lab entrance 1527 | -10/Mines | Discovered new exit (range 5) 1534 | -10/Mines | Entered Exiles 1578 | -10/Exiles | Met 8R-AWN 1600 | -10/Exiles | Met EX-HEX 1625 | -10/Exiles | Attacked by the Exiles 1649 | -10/Exiles | Core integrity fell below 50% 1683 | -10/Exiles | Core integrity fell below 20% 1693 | -10/Exiles | Destroyed by 8R-AWN with 8R-AWN's Boregun Last Messages --------------- 01677_ HV Slug penetrates Wall. 01680_ Penetrated by HV Slug. 01682_ Critical hit (Destroy). 01682_ Lgt. Treads destroyed. 01682_ Penetrated by HV Slug. 01684_ Critical hit (Destroy). 01684_ Penetrated by HV Slug. 01684_ Critical hit (Destroy). 01684_ Lgt. Cannon destroyed. 01686_ 8R-AWN suffers critical hit (Smash). 01686_ Destroyed Rnf. Fission Core. 01686_ 8R-AWN system corrupted by crushing effect. 01686_ Penetrated by HV Slug. 01686_ Critical hit (Destroy). 01686_ Penetrated by HV Slug. 01689_ Critical hit (Destroy). 01689_ Penetrated by HV Slug. 01691_ Critical hit (Destroy). 01691_ Penetrated by HV Slug. Map ----- +----------------------------------------------------+ | ?????????????????????????????????????????????????? | | ?????????????????????????????????????????????????? | | ?????????????????????????????????????????????????? | | ?????????????????????????????????????????????????? | | ?????????????????????????????????????????????????? | | ?????????????????????????????????????????????????? | | ?????????????????????????????????????????????????? | | ?????????????????????????????????????????????????? | | ?????????????????????????????????????????????????? | | ?????????????????????????????????????????????????? | | ???????????#?????????????????????????????????????? | | ???????"?"" ""?"#????????????????????????????????? | | ????? " """ """"#???????????????????????????????? | | ???? "" " ???????????????????????????????? | | ???? " """#??????????????????????????????? | | ??? a"#???????????#####??????????????? | | ??? " "##?????????##" #??????????????# | | ?? "###???????#" #?????????????## | | ?? ""#??????##" ##????????????# | | ?? "##???### ###????????### | | ???" =!##### ########## | | ???"" =!!## ## #""""## | | ??"""" [![#;# * | | ??"" ]=! ## * | | ???"" #### | | " @ ""#?#"""""#### | | #g""##?#######??#### | | ? ######??????????????##### | | ? ##???????????????????????## | | ?? " ##?????????????????????????? | | ?? """ #??????????????????????????? | | ??" " " ""# % ##??????????????????????????? | | ????""" """## #???????????????????????????? | | ?????#""???? # #???????????????????????????? | | ???????????##### ###???????????????????????????? | | ???????????????####??????????????????????????????? | | ?????????????????????????????????????????????????? | | ?????????????????????????????????????????????????? | | ?????????????????????????????????????????????????? | | ?????????????????????????????????????????????????? | | ?????????????????????????????????????????????????? | | ?????????????????????????????????????????????????? | | ?????????????????????????????????????????????????? | | ?????????????????????????????????????????????????? | | ?????????????????????????????????????????????????? | | ?????????????????????????????????????????????????? | | ?????????????????????????????????????????????????? | | ?????????????????????????????????????????????????? | | ?????????????????????????????????????????????????? | | ?????????????????????????????????????????????????? | +----------------------------------------------------+ Best States ------------- Heat Dissipation 25 Energy Generation 10 Energy Capacity 125 Matter Stores 300 Matter Capacity 300 Sight Range 16 Terrain Scan Density 10 Armor Coverage 300 Evasion (%) 40 Recoil Reduction 2 Item Schematics ----------------- None Robot Schematics ------------------ None Fabricated ------------ Nothing Repaired ---------- Nothing Studied --------- None Alien Tech Used ----------------- None Achievements -------------- None Challenges ------------ None Game ------ Seed StasisProcessingProcsplitter Manual? 0 Play Time 00:09:16 Cumulative 343.9 hours Start 2026.09.16 @ 16:53:29 End 2026.09.16 @ 17:01:22 Sessions 1 Manual Loads 0 Difficulty Rogue Special Mode None Game No. 178 Rogue 178 Adventurer 0 Explorer 0 Win Type - Total 8 Types 8/0/0/0/0/0/0/0/0/0 Lore% 57 Gallery% 63 Achievement% 46 Wizard Run 0 Options --------- Layout 1 ASCII 0 Keyboard 0 Movement Numpad Keybinds 0 Fullscreen 1 Font 24/Smallcaps Map View 50x35 Zoom Use 0% Tactical HUD 1 Map Filters NONE Filters NONE Steam 1 RUN: df0445f2-85c4-4edb-91a3-9b6098203886